[Event "January 2 Early 2024"]
[Site "https://www.chess.com"]
[Date "2024.01.02"]
[Round "3"]
[White "Ilamparthi A R"]
[Black "Spitzl, Vinzent"]
[Result "0-1"]
[Board "80"]
[TimeControl "180+1"]
[WhiteFideId "45015775"]
[BlackFideId "12901253"]
[WhiteElo "2838"]
[BlackElo "2473"]
[WhiteTeam "IND"]
[BlackTeam "GER"]
[WhiteClock "0:00:15"]
[BlackClock "0:00:55"]

1. d4 {[%clk 0:03:00]}  d5 {[%clk 0:02:50]} 2. Nf3 {[%clk 0:03:00]}  Nf6 {[%clk 0:02:50]} 3. Bf4 {[%clk 0:02:59]}  c5 {[%clk 0:02:49]} 4. e3 {[%clk 0:02:59]}  Nc6 {[%clk 0:02:49]} 5. Nbd2 {[%clk 0:02:58]}  Bf5 {[%clk 0:02:47]} 6. c3 {[%clk 0:02:54]}  Qb6 {[%clk 0:02:47]} 7. Qb3 {[%clk 0:02:31]}  c4 {[%clk 0:02:47]} 8. Qxb6 {[%clk 0:02:31]}  axb6 {[%clk 0:02:48]} 9. a3 {[%clk 0:02:28]}  h6 {[%clk 0:02:45]} 10. h3 {[%clk 0:02:27]}  e6 {[%clk 0:02:44]} 11. Be2 {[%clk 0:02:27]}  Be7 {[%clk 0:02:41]} 12. O-O {[%clk 0:02:23]}  O-O {[%clk 0:02:41]} 13. Ne5 {[%clk 0:02:20]}  Nxe5 {[%clk 0:02:31]} 14. Bxe5 {[%clk 0:02:17]}  Ne4 {[%clk 0:02:31]} 15. Nxe4 {[%clk 0:02:15]}  Bxe4 {[%clk 0:02:30]} 16. f3 {[%clk 0:02:15]}  Bg6 {[%clk 0:02:29]} 17. e4 {[%clk 0:02:15]}  b5 {[%clk 0:02:24]} 18. exd5 {[%clk 0:02:10]}  exd5 {[%clk 0:02:25]} 19. Rae1 {[%clk 0:02:10]}  Rfe8 {[%clk 0:02:21]} 20. g3 {[%clk 0:01:39]}  Rad8 {[%clk 0:02:12]} 21. Bd1 {[%clk 0:01:18]}  f6 {[%clk 0:01:56]} 22. Bc7 {[%clk 0:01:16]}  Rc8 {[%clk 0:01:55]} 23. Ba5 {[%clk 0:01:15]}  Bd6 {[%clk 0:01:53]} 24. Kf2 {[%clk 0:01:09]}  Rxe1 {[%clk 0:01:49]} 25. Rxe1 {[%clk 0:01:09]}  Re8 {[%clk 0:01:48]} 26. Rxe8+ {[%clk 0:01:08]}  Bxe8 {[%clk 0:01:49]} 27. f4 {[%clk 0:01:06]}  Kf7 {[%clk 0:01:37]} 28. Bg4 {[%clk 0:01:00]}  Ke7 {[%clk 0:01:30]} 29. Bf3 {[%clk 0:00:43]}  Ke6 {[%clk 0:01:28]} 30. f5+ {[%clk 0:00:32]}  Kxf5 {[%clk 0:01:28]} 31. Bxd5 {[%clk 0:00:33]}  Bc6 {[%clk 0:01:29]} 32. Bxc6 {[%clk 0:00:29]}  bxc6 {[%clk 0:01:29]} 33. Bb4 {[%clk 0:00:26]}  Bxb4 {[%clk 0:01:19]} 34. axb4 {[%clk 0:00:27]}  Ke4 {[%clk 0:01:20]} 35. Ke2 {[%clk 0:00:27]}  f5 {[%clk 0:01:16]} 36. h4 {[%clk 0:00:19]}  g6 {[%clk 0:01:04]} 37. Kf2 {[%clk 0:00:18]}  f4 {[%clk 0:00:56]} 38. g4 {[%clk 0:00:17]}  g5 {[%clk 0:00:55]} 39. hxg5 {[%clk 0:00:16]}  hxg5 {[%clk 0:00:55]} 40. Ke2 {[%clk 0:00:15]}  f3+ {[%clk 0:00:55]} 0-1

[Event "January 2 Early 2024"]
[Site "https://www.chess.com"]
[Date "2024.01.02"]
[Round "3"]
[White "Narayanan, Srinath"]
[Black "Brankovic, Dejan"]
[Result "1-0"]
[Board "81"]
[TimeControl "180+1"]
[WhiteFideId "5018420"]
[BlackFideId "921602"]
[WhiteElo "2819"]
[BlackElo "2472"]
[WhiteTeam "IND"]
[BlackTeam "SRB"]
[WhiteClock "0:00:17"]
[BlackClock "0:00:10"]

1. d4 {[%clk 0:03:00]}  Nf6 {[%clk 0:02:59]} 2. Nf3 {[%clk 0:03:00]}  g6 {[%clk 0:02:59]} 3. Bf4 {[%clk 0:02:59]}  Bg7 {[%clk 0:02:59]} 4. e3 {[%clk 0:03:00]}  d6 {[%clk 0:02:57]} 5. h3 {[%clk 0:03:00]}  O-O {[%clk 0:02:58]} 6. Bh2 {[%clk 0:02:59]}  Nc6 {[%clk 0:02:57]} 7. Be2 {[%clk 0:02:50]}  Qe8 {[%clk 0:02:48]} 8. O-O {[%clk 0:02:48]}  e5 {[%clk 0:02:48]} 9. Nc3 {[%clk 0:02:49]}  a6 {[%clk 0:02:46]} 10. dxe5 {[%clk 0:02:47]}  dxe5 {[%clk 0:02:46]} 11. Nd5 {[%clk 0:02:46]}  Nxd5 {[%clk 0:02:43]} 12. Qxd5 {[%clk 0:02:47]}  Be6 {[%clk 0:02:42]} 13. Qc5 {[%clk 0:02:34]}  f6 {[%clk 0:02:42]} 14. Rfd1 {[%clk 0:02:25]}  Qe7 {[%clk 0:02:37]} 15. Qxe7 {[%clk 0:02:14]}  Nxe7 {[%clk 0:02:37]} 16. Nd2 {[%clk 0:02:14]}  Rfd8 {[%clk 0:02:35]} 17. Ne4 {[%clk 0:02:13]}  b6 {[%clk 0:02:31]} 18. Rxd8+ {[%clk 0:02:04]}  Rxd8 {[%clk 0:02:29]} 19. Bxa6 {[%clk 0:02:05]}  Ra8 {[%clk 0:02:12]} 20. Bd3 {[%clk 0:02:01]}  c5 {[%clk 0:01:56]} 21. a3 {[%clk 0:01:49]}  h6 {[%clk 0:01:43]} 22. Nd6 {[%clk 0:01:24]}  Rd8 {[%clk 0:01:37]} 23. Nb5 {[%clk 0:01:22]}  c4 {[%clk 0:01:24]} 24. Bf1 {[%clk 0:01:19]}  Rd2 {[%clk 0:01:23]} 25. Rc1 {[%clk 0:01:19]}  f5 {[%clk 0:01:12]} 26. e4 {[%clk 0:01:09]}  f4 {[%clk 0:01:09]} 27. a4 {[%clk 0:01:01]}  g5 {[%clk 0:01:07]} 28. f3 {[%clk 0:00:58]}  Nc6 {[%clk 0:01:00]} 29. Na3 {[%clk 0:00:56]}  Na5 {[%clk 0:00:52]} 30. Kh1 {[%clk 0:00:55]}  Bf8 {[%clk 0:00:51]} 31. Bg1 {[%clk 0:00:48]}  Rd6 {[%clk 0:00:36]} 32. Nb5 {[%clk 0:00:41]}  Rc6 {[%clk 0:00:32]} 33. Rd1 {[%clk 0:00:39]}  h5 {[%clk 0:00:31]} 34. Rd8 {[%clk 0:00:37]}  Kf7 {[%clk 0:00:30]} 35. Rb8 {[%clk 0:00:35]}  Bc5 {[%clk 0:00:27]} 36. Bxc5 {[%clk 0:00:35]}  bxc5 {[%clk 0:00:28]} 37. Ra8 {[%clk 0:00:32]}  c3 {[%clk 0:00:20]} 38. Rxa5 {[%clk 0:00:16]}  cxb2 {[%clk 0:00:19]} 39. Nc3 {[%clk 0:00:16]}  Rb6 {[%clk 0:00:18]} 40. Rb5 {[%clk 0:00:17]}  Rxb5 {[%clk 0:00:15]} 41. Bxb5 {[%clk 0:00:17]}  Ba2 {[%clk 0:00:15]} 42. a5 {[%clk 0:00:17]}  b1=Q+ {[%clk 0:00:14]} 43. Nxb1 {[%clk 0:00:17]}  Bxb1 {[%clk 0:00:15]} 44. a6 {[%clk 0:00:18]}  Bxc2 {[%clk 0:00:10]} 45. a7 {[%clk 0:00:17]} 1-0

[Event "January 2 Early 2024"]
[Site "https://www.chess.com"]
[Date "2024.01.02"]
[Round "3"]
[White "Nadeev, Sergey"]
[Black "Bordi, Kevin"]
[Result "0-1"]
[Board "82"]
[TimeControl "180+1"]
[WhiteFideId "4180038"]
[BlackFideId "621862"]
[WhiteElo "2470"]
[BlackElo "2808"]
[WhiteTeam "RUS"]
[BlackTeam "MNC"]
[WhiteClock "0:00:00"]
[BlackClock "0:00:12"]

1. e4 {[%clk 0:02:56]}  d5 {[%clk 0:03:00]} 2. exd5 {[%clk 0:02:56]}  Qxd5 {[%clk 0:03:01]} 3. Nc3 {[%clk 0:02:56]}  Qa5 {[%clk 0:03:02]} 4. d4 {[%clk 0:02:56]}  Nf6 {[%clk 0:03:02]} 5. Nf3 {[%clk 0:02:57]}  Nc6 {[%clk 0:03:03]} 6. Bb5 {[%clk 0:02:47]}  Ne4 {[%clk 0:03:02]} 7. O-O {[%clk 0:02:45]}  Nxc3 {[%clk 0:03:02]} 8. Bxc6+ {[%clk 0:02:46]}  bxc6 {[%clk 0:03:03]} 9. Qd2 {[%clk 0:02:37]}  Bg4 {[%clk 0:03:01]} 10. Qxc3 {[%clk 0:02:31]}  Qxc3 {[%clk 0:03:00]} 11. bxc3 {[%clk 0:02:32]}  Bxf3 {[%clk 0:03:00]} 12. gxf3 {[%clk 0:02:33]}  e6 {[%clk 0:03:01]} 13. Rb1 {[%clk 0:02:32]}  Kd7 {[%clk 0:03:00]} 14. Be3 {[%clk 0:02:29]}  Bd6 {[%clk 0:02:52]} 15. c4 {[%clk 0:02:27]}  c5 {[%clk 0:02:47]} 16. dxc5 {[%clk 0:02:26]}  Be7 {[%clk 0:02:46]} 17. Rfd1+ {[%clk 0:02:22]}  Kc6 {[%clk 0:02:45]} 18. Kf1 {[%clk 0:02:15]}  Rhd8 {[%clk 0:02:39]} 19. Rd3 {[%clk 0:02:14]}  Bxc5 {[%clk 0:02:17]} 20. Ke2 {[%clk 0:02:08]}  Rd6 {[%clk 0:02:00]} 21. Rb5 {[%clk 0:02:01]}  Bb6 {[%clk 0:01:47]} 22. Rh5 {[%clk 0:01:57]}  h6 {[%clk 0:01:34]} 23. c5 {[%clk 0:01:54]}  Rxd3 {[%clk 0:01:34]} 24. cxd3 {[%clk 0:01:53]}  Ba5 {[%clk 0:01:34]} 25. Rh4 {[%clk 0:01:46]}  Rb8 {[%clk 0:01:26]} 26. Ra4 {[%clk 0:01:39]}  Rb2+ {[%clk 0:01:24]} 27. Kf1 {[%clk 0:01:38]}  Kb5 {[%clk 0:01:17]} 28. Rd4 {[%clk 0:01:37]}  Rxa2 {[%clk 0:00:53]} 29. Rd7 {[%clk 0:01:37]}  Kc6 {[%clk 0:00:53]} 30. Rxf7 {[%clk 0:01:37]}  Bc3 {[%clk 0:00:54]} 31. Re7 {[%clk 0:01:34]}  e5 {[%clk 0:00:32]} 32. Rxg7 {[%clk 0:01:30]}  a5 {[%clk 0:00:32]} 33. Rg6+ {[%clk 0:01:28]}  Kb5 {[%clk 0:00:32]} 34. Rg7 {[%clk 0:01:17]}  a4 {[%clk 0:00:31]} 35. Rxc7 {[%clk 0:01:17]}  a3 {[%clk 0:00:29]} 36. Rb7+ {[%clk 0:01:08]}  Kc6 {[%clk 0:00:19]} 37. Rb6+ {[%clk 0:01:08]}  Kc7 {[%clk 0:00:19]} 38. Ra6 {[%clk 0:01:07]}  Bb4 {[%clk 0:00:19]} 39. Ra7+ {[%clk 0:00:59]}  Kc6 {[%clk 0:00:15]} 40. Ra6+ {[%clk 0:00:59]}  Kc7 {[%clk 0:00:14]} 41. Ra7+ {[%clk 0:01:00]}  Kc8 {[%clk 0:00:09]} 42. c6 {[%clk 0:00:58]}  Rc2 {[%clk 0:00:09]} 43. Ra6 {[%clk 0:00:28]}  Kc7 {[%clk 0:00:08]} 44. Kg2 {[%clk 0:00:19]}  Rxc6 {[%clk 0:00:07]} 45. Ra4 {[%clk 0:00:19]}  Bd6 {[%clk 0:00:05]} 46. d4 {[%clk 0:00:17]}  exd4 {[%clk 0:00:03]} 47. Bxd4 {[%clk 0:00:18]}  Rc2 {[%clk 0:00:03]} 48. Bg7 {[%clk 0:00:16]}  h5 {[%clk 0:00:03]} 49. f4 {[%clk 0:00:14]}  a2 {[%clk 0:00:03]} 50. f5 {[%clk 0:00:14]}  Kc6 {[%clk 0:00:03]} 51. f6 {[%clk 0:00:14]}  Kb5 {[%clk 0:00:03]} 52. Ra8 {[%clk 0:00:12]}  Bc5 {[%clk 0:00:04]} 53. Kg3 {[%clk 0:00:09]}  Bxf2+ {[%clk 0:00:03]} 54. Kh3 {[%clk 0:00:09]}  Bd4 {[%clk 0:00:03]} 55. Bh8 {[%clk 0:00:07]}  a1=Q {[%clk 0:00:03]} 56. Rxa1 {[%clk 0:00:07]}  Bxa1 {[%clk 0:00:04]} 57. f7 {[%clk 0:00:07]}  Rf2 {[%clk 0:00:05]} 58. Bxa1 {[%clk 0:00:07]}  Rxf7 {[%clk 0:00:05]} 59. Kh4 {[%clk 0:00:07]}  Rf5 {[%clk 0:00:06]} 60. Bb2 {[%clk 0:00:03]}  Kc4 {[%clk 0:00:06]} 61. Bc1 {[%clk 0:00:03]}  Kd5 {[%clk 0:00:07]} 62. Bg5 {[%clk 0:00:04]}  Ke6 {[%clk 0:00:08]} 63. Kxh5 {[%clk 0:00:04]}  Kf7 {[%clk 0:00:08]} 64. h4 {[%clk 0:00:04]}  Kg7 {[%clk 0:00:09]} 65. Kg4 {[%clk 0:00:05]}  Rd5 {[%clk 0:00:10]} 66. Kh5 {[%clk 0:00:05]}  Kh7 {[%clk 0:00:10]} 67. Kg4 {[%clk 0:00:06]}  Kg6 {[%clk 0:00:11]} 68. h5+ {[%clk 0:00:06]}  Kg7 {[%clk 0:00:11]} 69. Bf4 {[%clk 0:00:06]}  Rb5 {[%clk 0:00:11]} 70. Bg5 {[%clk 0:00:06]}  Kf7 {[%clk 0:00:11]} 71. Bf4 {[%clk 0:00:05]}  Ke6 {[%clk 0:00:11]} 72. h6 {[%clk 0:00:06]}  Kf7 {[%clk 0:00:11]} 73. Bg5 {[%clk 0:00:06]}  Kg6 {[%clk 0:00:12]} 74. Bf4 {[%clk 0:00:07]}  Rb4 {[%clk 0:00:12]} 75. Kf3 {[%clk 0:00:07]}  Kf5 {[%clk 0:00:12]} 76. Be3 {[%clk 0:00:07]}  Rh4 {[%clk 0:00:12]} 77. Bd2 {[%clk 0:00:06]}  Rh3+ {[%clk 0:00:12]} 78. Ke2 {[%clk 0:00:06]}  Ke4 {[%clk 0:00:12]} 79. Kf1 {[%clk 0:00:06]}  Kf3 {[%clk 0:00:12]} 80. Kg1 {[%clk 0:00:05]}  Rh5 {[%clk 0:00:12]} 81. Bc1 {[%clk 0:00:00]}  Rd5 {[%clk 0:00:12]} 0-1

[Event "January 2 Early 2024"]
[Site "https://www.chess.com"]
[Date "2024.01.02"]
[Round "3"]
[White "Beydullayeva, Govhar"]
[Black "Goltsev, Dmitry"]
[Result "0-1"]
[Board "87"]
[TimeControl "180+1"]
[WhiteFideId "13413015"]
[BlackFideId "24176710"]
[WhiteElo "2462"]
[BlackElo "2738"]
[WhiteTeam "AZE"]
[BlackTeam "RUS"]
[WhiteClock "0:00:00"]
[BlackClock "0:01:46"]

1. Nf3 {[%clk 0:03:00]}  d5 {[%clk 0:02:58]} 2. g3 {[%clk 0:03:01]}  Nf6 {[%clk 0:02:55]} 3. Bg2 {[%clk 0:03:01]}  g6 {[%clk 0:02:55]} 4. O-O {[%clk 0:03:00]}  Bg7 {[%clk 0:02:56]} 5. d4 {[%clk 0:03:01]}  O-O {[%clk 0:02:57]} 6. c4 {[%clk 0:03:01]}  Nc6 {[%clk 0:02:57]} 7. Ne5 {[%clk 0:02:39]}  dxc4 {[%clk 0:02:55]} 8. Nxc6 {[%clk 0:02:35]}  bxc6 {[%clk 0:02:54]} 9. Bxc6 {[%clk 0:02:36]}  Rb8 {[%clk 0:02:54]} 10. Na3 {[%clk 0:02:33]}  Ng4 {[%clk 0:02:32]} 11. e3 {[%clk 0:02:20]}  e5 {[%clk 0:02:29]} 12. Nxc4 {[%clk 0:02:09]}  exd4 {[%clk 0:02:19]} 13. exd4 {[%clk 0:02:09]}  Bxd4 {[%clk 0:02:17]} 14. Bf4 {[%clk 0:01:52]}  Ba6 {[%clk 0:02:11]} 15. Qxg4 {[%clk 0:01:47]}  Bxc4 {[%clk 0:02:09]} 16. Rfd1 {[%clk 0:01:42]}  Qf6 {[%clk 0:01:56]} 17. Rac1 {[%clk 0:00:14]}  Bxf2+ {[%clk 0:01:46]} 18. Kxf2 {[%clk 0:00:00]}  Rxb2+ {[%clk 0:01:46]} 0-1

[Event "January 2 Early 2024"]
[Site "https://www.chess.com"]
[Date "2024.01.02"]
[Round "3"]
[White "Gatterer, Florian"]
[Black "Manelyuk, Daniil"]
[Result "0-1"]
[Board "90"]
[TimeControl "180+1"]
[WhiteFideId "811688"]
[BlackFideId "44173920"]
[WhiteElo "2451"]
[BlackElo "2727"]
[WhiteTeam "ITA"]
[BlackTeam "RUS"]
[WhiteClock "0:00:00"]
[BlackClock "0:00:12"]

1. d4 {[%clk 0:03:00]}  Nf6 {[%clk 0:02:15]} 2. Bf4 {[%clk 0:02:59]}  c5 {[%clk 0:02:13]} 3. d5 {[%clk 0:02:58]}  g6 {[%clk 0:02:11]} 4. Nc3 {[%clk 0:02:56]}  Bg7 {[%clk 0:02:11]} 5. e4 {[%clk 0:02:56]}  O-O {[%clk 0:02:11]} 6. e5 {[%clk 0:02:50]}  Ne8 {[%clk 0:02:11]} 7. Nf3 {[%clk 0:02:45]}  d6 {[%clk 0:02:12]} 8. h3 {[%clk 0:02:40]}  Nd7 {[%clk 0:02:06]} 9. exd6 {[%clk 0:02:21]}  exd6 {[%clk 0:02:05]} 10. Qd2 {[%clk 0:02:18]}  Qb6 {[%clk 0:02:00]} 11. Rb1 {[%clk 0:02:12]}  Nc7 {[%clk 0:01:47]} 12. Be2 {[%clk 0:02:07]}  Bxc3 {[%clk 0:01:44]} 13. Qxc3 {[%clk 0:02:01]}  Nxd5 {[%clk 0:01:44]} 14. Qd2 {[%clk 0:02:01]}  Nxf4 {[%clk 0:01:42]} 15. Qxf4 {[%clk 0:02:01]}  d5 {[%clk 0:01:40]} 16. O-O {[%clk 0:01:56]}  Qf6 {[%clk 0:01:40]} 17. Qc7 {[%clk 0:01:53]}  b6 {[%clk 0:01:00]} 18. Bb5 {[%clk 0:01:37]}  Qd8 {[%clk 0:00:59]} 19. Qf4 {[%clk 0:01:24]}  Bb7 {[%clk 0:00:56]} 20. c3 {[%clk 0:01:21]}  Nf6 {[%clk 0:00:54]} 21. Ng5 {[%clk 0:01:10]}  Nh5 {[%clk 0:00:40]} 22. Qd2 {[%clk 0:00:51]}  Qf6 {[%clk 0:00:40]} 23. Rbe1 {[%clk 0:00:33]}  Nf4 {[%clk 0:00:38]} 24. g3 {[%clk 0:00:30]}  Qxg5 {[%clk 0:00:31]} 25. Qxf4 {[%clk 0:00:30]}  Qxf4 {[%clk 0:00:31]} 26. gxf4 {[%clk 0:00:31]}  a6 {[%clk 0:00:31]} 27. Bd7 {[%clk 0:00:31]}  Rad8 {[%clk 0:00:26]} 28. Re7 {[%clk 0:00:30]}  d4 {[%clk 0:00:27]} 29. cxd4 {[%clk 0:00:30]}  cxd4 {[%clk 0:00:28]} 30. Rd1 {[%clk 0:00:29]}  Kg7 {[%clk 0:00:24]} 31. Rxd4 {[%clk 0:00:26]}  Bc8 {[%clk 0:00:24]} 32. Rd6 {[%clk 0:00:21]}  b5 {[%clk 0:00:24]} 33. b4 {[%clk 0:00:21]}  h6 {[%clk 0:00:20]} 34. f5 {[%clk 0:00:21]}  gxf5 {[%clk 0:00:19]} 35. f4 {[%clk 0:00:21]}  Bxd7 {[%clk 0:00:17]} 36. Rdxd7 {[%clk 0:00:21]}  Rxd7 {[%clk 0:00:18]} 37. Rxd7 {[%clk 0:00:21]}  Rc8 {[%clk 0:00:19]} 38. Rd2 {[%clk 0:00:15]}  Rc4 {[%clk 0:00:19]} 39. a3 {[%clk 0:00:10]}  Rc3 {[%clk 0:00:18]} 40. Ra2 {[%clk 0:00:09]}  Rf3 {[%clk 0:00:18]} 41. a4 {[%clk 0:00:08]}  Rxf4 {[%clk 0:00:18]} 42. axb5 {[%clk 0:00:08]}  axb5 {[%clk 0:00:19]} 43. Rb2 {[%clk 0:00:08]}  Rf3 {[%clk 0:00:19]} 44. Kg2 {[%clk 0:00:08]}  Rc3 {[%clk 0:00:19]} 45. Rb1 {[%clk 0:00:08]}  Kf6 {[%clk 0:00:19]} 46. Rb2 {[%clk 0:00:08]}  f4 {[%clk 0:00:20]} 47. Rd2 {[%clk 0:00:06]}  Rc4 {[%clk 0:00:19]} 48. Rd6+ {[%clk 0:00:05]}  Kg5 {[%clk 0:00:19]} 49. Rd5+ {[%clk 0:00:05]}  f5 {[%clk 0:00:18]} 50. Rd8 {[%clk 0:00:04]}  Rxb4 {[%clk 0:00:18]} 51. Rg8+ {[%clk 0:00:03]}  Kf6 {[%clk 0:00:18]} 52. Kf3 {[%clk 0:00:03]}  Rc4 {[%clk 0:00:18]} 53. Rf8+ {[%clk 0:00:03]}  Kg5 {[%clk 0:00:17]} 54. Rg8+ {[%clk 0:00:03]}  Kh4 {[%clk 0:00:18]} 55. Rg6 {[%clk 0:00:03]}  h5 {[%clk 0:00:18]} 56. Rf6 {[%clk 0:00:03]}  b4 {[%clk 0:00:14]} 57. Rxf5 {[%clk 0:00:03]}  b3 {[%clk 0:00:15]} 58. Rb5 {[%clk 0:00:03]}  Rc3+ {[%clk 0:00:14]} 59. Kxf4 {[%clk 0:00:03]}  Rxh3 {[%clk 0:00:14]} 60. Rb4 {[%clk 0:00:03]}  Rc3 {[%clk 0:00:13]} 61. Kf5+ {[%clk 0:00:02]}  Kg3 {[%clk 0:00:11]} 62. Kg5 {[%clk 0:00:03]}  Kf3 {[%clk 0:00:11]} 63. Rf4+ {[%clk 0:00:02]}  Ke3 {[%clk 0:00:11]} 64. Rb4 {[%clk 0:00:03]}  Kd3 {[%clk 0:00:11]} 65. Kxh5 {[%clk 0:00:04]}  Kc2 {[%clk 0:00:11]} 66. Kg4 {[%clk 0:00:03]}  b2 {[%clk 0:00:11]} 67. Kf4 {[%clk 0:00:04]}  b1=Q {[%clk 0:00:11]} 68. Rxb1 {[%clk 0:00:00]}  Kxb1 {[%clk 0:00:12]} 0-1

[Event "January 2 Early 2024"]
[Site "https://www.chess.com"]
[Date "2024.01.02"]
[Round "3"]
[White "Hamitevici, Vladimir"]
[Black "Vallejo Diaz, Javier"]
[Result "1/2-1/2"]
[Board "98"]
[TimeControl "180+1"]
[WhiteFideId "13902393"]
[BlackFideId "2256398"]
[WhiteElo "2674"]
[BlackElo "2433"]
[WhiteTeam "MDA"]
[BlackTeam "ESP"]
[WhiteClock "0:00:06"]
[BlackClock "0:00:11"]

1. c4 {[%clk 0:03:00]}  e5 {[%clk 0:02:58]} 2. d3 {[%clk 0:03:00]}  Nc6 {[%clk 0:02:59]} 3. a3 {[%clk 0:02:59]}  a5 {[%clk 0:02:57]} 4. e3 {[%clk 0:02:58]}  g6 {[%clk 0:02:46]} 5. Nc3 {[%clk 0:02:52]}  Bg7 {[%clk 0:02:45]} 6. Nf3 {[%clk 0:02:49]}  d6 {[%clk 0:02:45]} 7. Be2 {[%clk 0:02:46]}  f5 {[%clk 0:02:45]} 8. Rb1 {[%clk 0:02:28]}  Nf6 {[%clk 0:02:39]} 9. b4 {[%clk 0:02:26]}  axb4 {[%clk 0:02:40]} 10. axb4 {[%clk 0:02:26]}  O-O {[%clk 0:02:41]} 11. b5 {[%clk 0:02:24]}  Ne7 {[%clk 0:02:40]} 12. O-O {[%clk 0:02:19]}  h6 {[%clk 0:02:38]} 13. Nd2 {[%clk 0:02:12]}  g5 {[%clk 0:02:35]} 14. d4 {[%clk 0:02:02]}  Ng6 {[%clk 0:02:14]} 15. Qc2 {[%clk 0:01:55]}  Qe8 {[%clk 0:02:05]} 16. c5 {[%clk 0:01:50]}  exd4 {[%clk 0:01:48]} 17. exd4 {[%clk 0:01:50]}  Nf4 {[%clk 0:01:49]} 18. Bc4+ {[%clk 0:01:37]}  d5 {[%clk 0:01:48]} 19. Bb3 {[%clk 0:01:34]}  c6 {[%clk 0:01:42]} 20. Nf3 {[%clk 0:01:33]}  Ne4 {[%clk 0:01:37]} 21. Bxf4 {[%clk 0:01:25]}  gxf4 {[%clk 0:01:37]} 22. bxc6 {[%clk 0:01:12]}  bxc6 {[%clk 0:01:32]} 23. Nxd5 {[%clk 0:01:10]}  cxd5 {[%clk 0:01:32]} 24. Bxd5+ {[%clk 0:01:10]}  Be6 {[%clk 0:01:33]} 25. Bxa8 {[%clk 0:01:01]}  Qxa8 {[%clk 0:01:34]} 26. c6 {[%clk 0:00:50]}  Rc8 {[%clk 0:01:31]} 27. Rfc1 {[%clk 0:00:49]}  Rc7 {[%clk 0:01:28]} 28. Ne5 {[%clk 0:00:45]}  Bxe5 {[%clk 0:01:23]} 29. dxe5 {[%clk 0:00:44]}  f3 {[%clk 0:01:24]} 30. gxf3 {[%clk 0:00:20]}  Ng5 {[%clk 0:01:23]} 31. Kg2 {[%clk 0:00:12]}  Qe8 {[%clk 0:01:16]} 32. f4 {[%clk 0:00:10]}  Bd5+ {[%clk 0:01:02]} 33. Kf1 {[%clk 0:00:10]}  Ne4 {[%clk 0:01:00]} 34. Qb2 {[%clk 0:00:04]}  Bxc6 {[%clk 0:00:41]} 35. Qb6 {[%clk 0:00:04]}  Bb5+ {[%clk 0:00:40]} 36. Ke1 {[%clk 0:00:02]}  Rg7 {[%clk 0:00:28]} 37. Qxb5 {[%clk 0:00:02]}  Rg1+ {[%clk 0:00:28]} 38. Ke2 {[%clk 0:00:03]}  Qxb5+ {[%clk 0:00:25]} 39. Rxb5 {[%clk 0:00:02]}  Rxc1 {[%clk 0:00:26]} 40. Rb6 {[%clk 0:00:01]}  Kg7 {[%clk 0:00:26]} 41. e6 {[%clk 0:00:02]}  Rc2+ {[%clk 0:00:26]} 42. Ke3 {[%clk 0:00:02]}  Rxf2 {[%clk 0:00:24]} 43. e7 {[%clk 0:00:03]}  Kf7 {[%clk 0:00:22]} 44. Re6 {[%clk 0:00:03]}  Ke8 {[%clk 0:00:11]} 45. Rxe4 {[%clk 0:00:03]}  Rxh2 {[%clk 0:00:11]} 46. Re5 {[%clk 0:00:04]}  Rh3+ {[%clk 0:00:12]} 47. Kd4 {[%clk 0:00:04]}  Rf3 {[%clk 0:00:11]} 48. Rxf5 {[%clk 0:00:04]}  Kxe7 {[%clk 0:00:12]} 49. Ke4 {[%clk 0:00:05]}  Ra3 {[%clk 0:00:12]} 50. Rh5 {[%clk 0:00:06]}  Ra4+ {[%clk 0:00:12]} 51. Kf3 {[%clk 0:00:06]}  Ra6 {[%clk 0:00:13]} 52. Kg4 {[%clk 0:00:06]}  Kf7 {[%clk 0:00:11]} 1/2-1/2

[Event "January 2 Early 2024"]
[Site "https://www.chess.com"]
[Date "2024.01.02"]
[Round "3"]
[White "Sztokbant, Bernardo Vainzoff"]
[Black "Guerra Tulcan, Lenin"]
[Result "1-0"]
[Board "101"]
[TimeControl "180+1"]
[WhiteFideId "2115956"]
[BlackFideId "3601382"]
[WhiteElo "2421"]
[BlackElo "2661"]
[WhiteTeam "BRA"]
[BlackTeam "ECU"]
[WhiteClock "0:00:11"]
[BlackClock "0:01:13"]

1. c4 {[%clk 0:03:00]}  e5 {[%clk 0:02:59]} 2. Nc3 {[%clk 0:03:00]}  Bc5 {[%clk 0:02:59]} 3. g3 {[%clk 0:02:58]}  d6 {[%clk 0:02:59]} 4. Bg2 {[%clk 0:02:58]}  a6 {[%clk 0:03:00]} 5. Nf3 {[%clk 0:02:58]}  Nf6 {[%clk 0:03:00]} 6. O-O {[%clk 0:02:58]}  O-O {[%clk 0:03:01]} 7. d4 {[%clk 0:02:57]}  exd4 {[%clk 0:03:00]} 8. Nxd4 {[%clk 0:02:58]}  Re8 {[%clk 0:02:59]} 9. b3 {[%clk 0:02:57]}  Nbd7 {[%clk 0:02:57]} 10. Bb2 {[%clk 0:02:56]}  Nf8 {[%clk 0:02:54]} 11. Qd2 {[%clk 0:02:50]}  Rb8 {[%clk 0:02:53]} 12. Rfd1 {[%clk 0:02:49]}  Ne6 {[%clk 0:02:54]} 13. Na4 {[%clk 0:02:41]}  Ba7 {[%clk 0:02:51]} 14. Rac1 {[%clk 0:02:30]}  Bd7 {[%clk 0:02:45]} 15. Nxe6 {[%clk 0:02:27]}  Bxe6 {[%clk 0:02:42]} 16. c5 {[%clk 0:02:16]}  dxc5 {[%clk 0:02:14]} 17. Qxd8 {[%clk 0:02:09]}  Rexd8 {[%clk 0:02:14]} 18. Rxd8+ {[%clk 0:01:56]}  Rxd8 {[%clk 0:02:15]} 19. Bxf6 {[%clk 0:01:56]}  gxf6 {[%clk 0:02:14]} 20. Bxb7 {[%clk 0:01:56]}  Rd2 {[%clk 0:02:05]} 21. Bxa6 {[%clk 0:01:54]}  Rxa2 {[%clk 0:02:05]} 22. Bc4 {[%clk 0:01:49]}  Bxc4 {[%clk 0:02:00]} 23. Rxc4 {[%clk 0:01:50]}  Rxe2 {[%clk 0:02:00]} 24. Nxc5 {[%clk 0:01:28]}  Rb2 {[%clk 0:01:59]} 25. b4 {[%clk 0:01:13]}  Kg7 {[%clk 0:01:50]} 26. Kg2 {[%clk 0:00:53]}  Bb6 {[%clk 0:01:48]} 27. Kf3 {[%clk 0:00:46]}  f5 {[%clk 0:01:47]} 28. h4 {[%clk 0:00:31]}  Kg6 {[%clk 0:01:46]} 29. Ke3 {[%clk 0:00:26]}  Kf6 {[%clk 0:01:38]} 30. Kf3 {[%clk 0:00:24]}  Kg6 {[%clk 0:01:19]} 31. Nd3 {[%clk 0:00:19]}  Rd2 {[%clk 0:01:18]} 32. Rc3 {[%clk 0:00:18]}  f6 {[%clk 0:01:14]} 33. Nf4+ {[%clk 0:00:18]}  Kf7 {[%clk 0:01:14]} 34. Ne2 {[%clk 0:00:17]}  Rb2 {[%clk 0:01:12]} 35. Rc4 {[%clk 0:00:17]}  Rxb4 {[%clk 0:01:12]} 36. Rxb4 {[%clk 0:00:17]}  Ke6 {[%clk 0:01:13]} 37. Rb1 {[%clk 0:00:13]}  Kd5 {[%clk 0:01:11]} 38. Nf4+ {[%clk 0:00:14]}  Kc4 {[%clk 0:01:12]} 39. Rc1+ {[%clk 0:00:12]}  Kd4 {[%clk 0:01:12]} 40. Re1 {[%clk 0:00:10]}  c5 {[%clk 0:01:12]} 41. Re6 {[%clk 0:00:09]}  Ba5 {[%clk 0:01:11]} 42. Rxf6 {[%clk 0:00:08]}  c4 {[%clk 0:01:12]} 43. Rxf5 {[%clk 0:00:09]}  c3 {[%clk 0:01:12]} 44. Ne2+ {[%clk 0:00:09]}  Kd3 {[%clk 0:01:12]} 45. Nxc3 {[%clk 0:00:10]}  Bxc3 {[%clk 0:01:12]} 46. Rf7 {[%clk 0:00:09]}  h6 {[%clk 0:01:12]} 47. Kg4 {[%clk 0:00:07]}  Bd2 {[%clk 0:01:13]} 48. Rd7+ {[%clk 0:00:07]}  Ke2 {[%clk 0:01:13]} 49. Rxd2+ {[%clk 0:00:08]}  Kxd2 {[%clk 0:01:14]} 50. Kh5 {[%clk 0:00:08]}  Ke2 {[%clk 0:01:15]} 51. Kxh6 {[%clk 0:00:09]}  Kf3 {[%clk 0:01:16]} 52. Kg5 {[%clk 0:00:09]}  Kxf2 {[%clk 0:01:16]} 53. h5 {[%clk 0:00:10]}  Kxg3 {[%clk 0:01:13]} 54. h6 {[%clk 0:00:11]} 1-0